bitfinex/quotes_SOLUSD_20241118
["timestamp","ask_amount","ask_price","bid_price","bid_amount"]
[1731958861903,0.09367462,236.44,236.36,0.4638656]
[1731958862482,24.12153862,236.44,236.36,0.4638656]
[1731958862786,0.09367462,236.38,236.36,0.4638656]
[1731958863104,24.12153862,236.38,236.36,0.4638656]
[1731958863620,178.93167362,236.43,236.36,20.99553922]
[1731958863822,44.55953762,236.41,236.36,0.4638656]
[1731958864113,0.12549,236.39,236.36,0.4638656]
[1731958864287,0.09367462,236.38,236.36,0.4638656]
[1731958864483,0.34465462,236.37,236.36,0.4638656]
[1731958866015,0.12549,236.37,236.36,0.4638656]
[1731958866313,0.21916462,236.38,236.36,0.4638656]
[1731958866314,0.09367462,236.38,236.36,0.4638656]
[1731958866484,178.93167362,236.37,236.36,0.4638656]
[1731958866888,20.53167362,236.37,236.36,0.4638656]
[1731958867292,91.53167362,236.37,236.36,0.4638656]
[1731958867515,95.76227362,236.37,236.36,0.4638656]
[1731958867993,119.79013762,236.37,236.36,0.4638656]
[1731958868189,119.79013762,236.37,236.21,10.5834]
[1731958868190,0.12549,236.31,236.21,10.5834]
[1731958868403,0.21916462,236.26,236.22,20.53167362]
[1731958868615,0.21916462,236.26,236.21,14.8169]
[1731958869415,0.12549,236.23,236.17,20.53167362]
[1731958869616,20.62534824,236.22,236.16,4.2343]
[1731958869820,0.12549,236.24,236.11,32.7276]
[1731958869821,0.09367462,236.18,236.13,20.53167362]
[1731958870111,0.09367462,236.18,236.15,20.53167362]
[1731958870321,0.09367462,236.18,236.12,15.2866656]
[1731958870523,20.62534824,236.18,236.12,15.2866656]
[1731958870817,0.09367462,236.18,236.12,35.81833922]
[1731958871027,20.62534824,236.18,236.12,15.2866656]
[1731958871315,20.53167362,236.17,236.12,15.2866656]
[1731958871496,20.62534824,236.18,236.12,15.2866656]
[1731958872308,0.12549,236.23,236.17,20.53167362]
[1731958872625,4.2327,236.26,236.12,15.2866656]
[1731958872924,158.49367462,236.25,236.12,15.2866656]
[1731958873416,0.09367462,236.23,236.12,15.2866656]
[1731958873618,24.12153862,236.23,236.12,15.2866656]
[1731958873792,0.09367462,236.2,236.14,20.53167362]
[1731958873987,0.09367462,236.2,236.15,20.53167362]
[1731958874202,0.25098,236.23,236.17,20.53167362]
[1731958874414,178.93167362,236.27,236.2,20.53167362]
[1731958874611,24.76417362,236.27,236.13,20.0]
[1731958874800,4.2325,236.27,236.13,20.0]
[1731958875193,20.53167362,236.24,236.16,20.53167362]
[1731958875416,158.4,236.3,236.18,20.53167362]
[1731958875417,0.09367462,236.23,236.18,20.53167362]
[1731958875997,178.93167362,236.29,236.21,20.53167362]
[1731958876232,183.16377362,236.29,236.22,20.53167362]
[1731958876403,20.53167362,236.27,236.2,20.53167362]
[1731958876599,20.53167362,236.27,236.19,20.53167362]
[1731958876910,20.62534824,236.26,236.18,20.53167362]
[1731958877506,0.12549,236.26,236.21,20.53167362]
[1731958877824,23.776884,236.28,236.21,20.53167362]
[1731958878525,0.09367462,236.27,236.21,20.53167362]
[1731958878728,20.53167362,236.31,236.24,20.53167362]
[1731958879102,20.53167362,236.33,236.26,20.53167362]
[1731958879600,0.09367462,236.32,236.25,10.5819]
[1731958879799,0.09367462,236.25,236.17,20.53167362]
[1731958880020,20.53167362,236.22,236.15,35.35257362]
[1731958880327,0.09367462,236.22,236.15,35.35257362]
[1731958880521,20.53167362,236.21,236.15,14.8209]
[1731958881123,0.09367462,236.22,236.15,35.35257362]
[1731958881307,20.53167362,236.25,236.17,20.53167362]
[1731958881511,178.93167362,236.29,236.21,20.53167362]
[1731958881821,33.12357362,236.33,236.25,20.53167362]
[1731958882002,20.53167362,236.33,236.25,20.53167362]
[1731958882532,20.53167362,236.35,236.27,20.53167362]
[1731958883421,20.53167362,236.33,236.25,20.53167362]
[1731958883625,20.53167362,236.33,236.25,24.76437362]
[1731958883829,20.53167362,236.33,236.25,35.34637362]
[1731958884520,20.53167362,236.33,236.27,1.0]
[1731958884729,0.09367462,236.32,236.27,1.0]
[1731958884897,20.53167362,236.31,236.27,1.0]
[1731958885230,4.2314,236.33,236.27,1.0]
[1731958885231,20.53167362,236.33,236.27,5.2323]
[1731958885395,20.53167362,236.37,236.29,20.53167362]
[1731958885811,0.09367462,236.36,236.29,20.53167362]
[1731958886027,0.09367462,236.34,236.27,36.34507362]
[1731958886209,0.09367462,236.34,236.31,1.0]
[1731958886824,20.53167362,236.33,236.31,1.0]
[1731958888326,0.21916462,236.34,236.31,1.0]
[1731958888715,0.21916462,236.34,236.33,1.0]
[1731958889715,0.12549,236.36,236.33,1.0]
[1731958890027,183.16167362,236.41,236.33,25.76287362]
[1731958890218,24.76127362,236.43,236.35,20.53167362]
[1731958890433,24.76127362,236.43,236.33,25.76287362]
[1731958890604,20.53167362,236.41,236.33,25.76287362]
[1731958891304,0.09367462,236.4,236.33,36.34127362]
[1731958891932,0.21916462,236.41,236.33,36.34127362]
[1731958893112,23.98063824,236.42,236.33,36.34127362]
[1731958894216,12.5801,236.45,236.33,1.0]
[1731958894217,20.53167362,236.38,236.33,1.0]
[1731958894929,20.53167362,236.36,236.33,1.0]
[1731958895300,19.53167362,236.36,236.31,1.0]
[1731958895504,0.09367462,236.37,236.31,1.0]
[1731958896407,20.53167362,236.38,236.31,1.0]
[1731958896729,158.4,236.41,236.35,20.53167362]
[1731958896934,4.2294,236.44,236.37,20.53167362]
[1731958898135,24.76067362,236.47,236.39,20.53167362]
[1731958898338,24.76067362,236.47,236.34,12.0957]
[1731958898339,4.2286,236.49,236.41,20.53167362]
[1731958898514,158.4,236.54,236.48,20.53167362]
[1731958898717,158.4,236.54,236.42,20.0]
[1731958898718,2.20369611,236.66,236.6,0.5]
[1731958898916,2.20369611,236.66,236.58,0.5]
[1731958898917,180.92085982,236.87,236.66,20.0]
[1731958899115,20.53167362,236.87,236.77,20.53167362]
[1731958899416,158.4,236.86,236.77,20.53167362]
[1731958899946,158.4,236.88,236.79,20.53167362]
[1731958900257,158.4,236.88,236.68,0.5]
[1731958900258,158.4,236.88,236.81,20.53167362]
[1731958901240,24.027864,236.87,236.81,20.53167362]
[1731958901428,0.09367462,236.86,236.81,20.53167362]
[1731958901630,24.75337362,236.87,236.78,20.53167362]
[1731958901941,20.53167362,236.85,236.76,20.53167362]
[1731958902138,24.75337362,236.87,236.78,20.53167362]
[1731958902352,158.4,236.9,236.84,20.53167362]
[1731958902526,178.93167362,236.93,236.84,20.53167362]
[1731958903550,0.09367462,236.9,236.82,20.53167362]
[1731958903746,24.12153862,236.86,236.8,20.53167362]
[1731958904239,0.09367462,236.86,236.8,20.53167362]
[1731958904442,0.25098,236.87,236.82,20.53167362]
[1731958904651,74.2206,236.93,236.86,20.53167362]
[1731958904652,162.6206,236.93,236.86,20.53167362]
[1731958905020,183.15227362,236.93,236.86,20.53167362]
[1731958905339,0.09367462,236.92,236.86,20.53167362]
[1731958905850,162.6206,236.93,236.86,20.53167362]
[1731958906047,158.8638656,236.94,236.88,20.53167362]
[1731958906645,0.09367462,236.93,236.88,20.53167362]
[1731958907026,0.4638656,236.94,236.91,20.53167362]
[1731958907343,0.4638656,236.94,236.93,20.53167362]
[1731958912828,0.55754022,236.94,236.9,14.7737]
[1731958913057,0.55754022,236.94,236.89,20.53167362]
[1731958913058,23.776884,236.93,236.89,20.53167362]
[1731958913270,23.776884,236.93,236.87,24.75327362]
[1731958913564,24.12153862,236.87,236.78,10.5583]
[1731958913851,23.776884,236.85,236.78,31.08997362]
[1731958914158,23.776884,236.85,236.8,20.53167362]
[1731958914451,23.87055862,236.86,236.8,20.53167362]
[1731958915242,23.776884,236.86,236.82,20.53167362]
[1731958916459,178.93167362,236.92,236.82,20.53167362]
[1731958916764,158.65098,236.91,236.84,20.53167362]
[1731958916935,23.776884,236.9,236.84,20.53167362]
[1731958917258,158.4,236.91,236.86,20.53167362]
[1731958917431,158.4,236.91,236.83,14.7784]
[1731958917432,158.4,236.91,236.84,20.53167362]
[1731958918351,23.87055862,236.91,236.85,4.222]
[1731958918859,23.87055862,236.91,236.84,20.53167362]
[1731958919157,23.87055862,236.91,236.83,10.556]
[1731958919158,23.776884,236.88,236.83,10.556]
[1731958919577,23.776884,236.86,236.77,31.09007362]
[1731958919746,23.776884,236.86,236.79,20.53167362]
[1731958920549,23.776884,236.86,236.8,4.2229]
[1731958921351,23.776884,236.86,236.81,20.53167362]
[1731958921657,0.09367462,236.86,236.79,20.53167362]
[1731958922059,0.09367462,236.87,236.79,20.53167362]
[1731958922763,0.09367462,236.87,236.81,24.75437362]
[1731958922956,158.8638656,236.94,236.85,20.53167362]
[1731958923139,0.4638656,236.94,236.87,20.53167362]
[1731958923542,20.53167362,236.93,236.85,20.53167362]
[1731958924842,23.776884,236.92,236.86,4.2219]
[1731958926777,23.776884,236.92,236.86,14.7766]
[1731958926978,24.2407496,236.94,236.87,20.53167362]
[1731958927276,0.4638656,236.94,236.91,20.53167362]
[1731958929350,0.4638656,236.94,236.93,20.53167362]
[1731958931878,0.21916462,236.91,236.83,20.53167362]
[1731958932183,0.21916462,236.87,236.83,20.53167362]
[1731958934257,4.44086462,236.87,236.81,20.53167362]
[1731958934582,0.21916462,236.85,236.8,10.557]
[1731958934771,0.21916462,236.85,236.78,4.2232]
[1731958934772,23.776884,236.84,236.78,4.2232]
[1731958935084,23.776884,236.84,236.79,20.53167362]
[1731958935467,23.776884,236.84,236.83,20.53167362]
[1731958935982,158.4,236.85,236.83,20.53167362]
[1731958937983,158.4,236.85,236.83,24.75397362]
[1731958938186,158.4,236.85,236.83,35.30997362]
[1731958939683,23.99604862,236.92,236.83,35.30997362]
[1731958939985,182.39604862,236.92,236.87,20.53167362]
[1731958940790,182.39604862,236.92,236.87,24.75327362]
[1731958941381,182.176884,236.92,236.87,24.75327362]
[1731958941560,23.776884,236.92,236.87,35.30757362]
[1731958942260,0.4638656,236.94,236.91,20.53167362]
[1731958942463,0.4638656,236.94,236.93,20.53167362]
[1731958943187,0.55754022,236.94,236.93,20.53167362]
[1731958943364,0.55754022,236.94,236.91,20.53167362]
[1731958943569,0.55754022,236.94,236.9,10.5525]
[1731958943890,0.09367462,236.93,236.87,20.53167362]
[1731958944093,0.09367462,236.91,236.87,20.53167362]
[1731958944295,0.09367462,236.91,236.85,31.08647362]
[1731958944599,23.776884,236.9,236.85,31.08647362]
[1731958944885,0.21916462,236.89,236.85,20.53167362]
[1731958950492,23.776884,236.88,236.87,20.53167362]
[1731958951797,23.99604862,236.89,236.86,20.53167362]
[1731958951977,23.99604862,236.89,236.85,20.53167362]
[1731958952675,23.99604862,236.89,236.86,20.53167362]
[1731958953399,23.99604862,236.89,236.85,20.53167362]
[1731958954800,182.39604862,236.89,236.85,20.53167362]
[1731958955780,182.39604862,236.89,236.77,10.5099]
[1731958955781,158.4,236.89,236.88,20.53167362]
[1731958956072,162.62,236.97,236.88,20.53167362]
[1731958956392,158.4,236.96,236.9,20.53167362]
[1731958956588,158.4,236.95,236.91,20.53167362]
[1731958956897,158.4,236.96,236.91,20.53167362]
[1731958957296,70.0,237.01,236.75,4.2238]
[1731958957297,0.09367462,236.89,236.75,4.2238]
[1731958957604,24.12153862,236.83,236.75,4.2238]
[1731958957899,228.4,236.88,236.74,20.53167362]
[1731958957900,23.99604862,236.81,236.74,20.53167362]
[1731958958084,23.99604862,236.81,236.76,20.53167362]
[1731958958900,23.99604862,236.81,236.76,24.75527362]
[1731958960809,182.39604862,236.81,236.76,20.53167362]
[1731958961688,182.39604862,236.81,236.74,24.75557362]
[1731958961995,23.99604862,236.79,236.72,36.31707362]
[1731958962203,23.99604862,236.79,236.72,32.09267362]
[1731958962703,158.4,236.78,236.72,36.31707362]
[1731958963110,23.776884,236.77,236.72,36.31707362]
[1731958963605,23.776884,236.77,236.74,20.53167362]
[1731958963806,0.12549,236.8,236.74,20.53167362]
[1731958963807,158.4,236.8,236.76,20.53167362]
[1731958963987,158.4,236.8,236.78,20.53167362]
[1731958964309,24.12153862,236.82,236.76,20.53167362]
[1731958964479,24.12153862,236.82,236.76,12.84323244]
[1731958965304,28.34423862,236.82,236.76,12.84323244]
[1731958966908,41.18747106,236.82,236.74,27.62733244]
[1731958968009,24.12153862,236.82,236.74,27.62733244]
[1731958968199,24.12153862,236.82,236.77,12.84323244]
[1731958968400,24.12153862,236.82,236.74,14.7841]
[1731958968401,23.902374,236.82,236.74,14.7841]
[1731958968601,23.902374,236.82,236.81,12.84323244]
[1731958968829,23.902374,236.82,236.75,12.84323244]
[1731958968830,186.524974,236.82,236.75,12.84323244]
[1731958969028,182.302374,236.82,236.77,12.84323244]
[1731958969704,186.524974,236.82,236.77,12.84323244]
[1731958970028,186.524974,236.82,236.75,12.84323244]
[1731958970210,186.524974,236.82,236.75,17.06693244]
[1731958970527,23.902374,236.82,236.75,27.62653244]
[1731958971706,28.124974,236.82,236.75,27.62653244]
[1731958972327,158.4,236.83,236.79,12.84323244]
[1731958975731,23.776884,236.83,236.79,12.84323244]
[1731958977542,23.776884,236.84,236.79,12.84323244]
[1731958980615,4.2213,236.9,236.83,12.84323244]
[1731958981039,12.93690706,236.89,236.81,12.84323244]
[1731958981613,4.2214,236.89,236.82,4.2226]
[1731958981826,23.902374,236.88,236.82,4.2226]
[1731958982642,28.123974,236.88,236.82,4.2226]
[1731958984549,28.123974,236.88,236.79,12.84323244]
[1731958985041,28.123974,236.88,236.81,12.84323244]
[1731958985650,28.123974,236.88,236.82,4.2226]
[1731958985950,0.12549,236.88,236.82,27.62233244]
[1731958986148,12.84323244,236.91,236.84,12.84323244]
[1731958986330,4.221,236.92,236.84,12.84323244]
[1731958987025,4.221,236.92,236.85,4.222]
[1731958987424,23.776884,236.91,236.85,4.222]
[1731958988433,23.902374,236.92,236.85,4.222]
[1731958988636,23.902374,236.92,236.85,14.7772]
[1731958989158,23.902374,236.92,236.86,12.84323244]
[1731958989359,23.776884,236.92,236.86,27.61973244]
[1731958989742,0.4638656,236.94,236.91,12.84323244]
[1731958990053,0.4638656,236.94,236.93,12.84323244]
[1731958991558,0.4638656,236.94,236.93,17.06383244]
[1731958994140,0.4638656,236.94,236.93,37.06383244]
[1731958994854,0.4638656,236.94,236.93,61.68537106]
[1731958995032,0.4638656,236.94,236.93,62.18537106]
[1731958995232,0.4638656,236.94,236.93,61.68537106]
[1731958995650,0.4638656,236.94,236.93,24.2206]
[1731958995960,0.4638656,236.94,236.93,17.06383244]
[1731958997350,0.4638656,236.94,236.93,37.06383244]
[1731958997652,10.72509976,237.22,237.06,9.8447]
[1731958997842,158.4,237.22,237.14,12.84323244]
[1731958998037,164.90959976,237.22,237.14,12.84323244]
[1731958998242,158.4,237.22,237.14,12.84323244]
[1731958998630,158.4,237.22,237.16,12.84323244]
[1731959000453,158.4,237.22,237.14,12.84323244]
[1731959000454,23.776884,237.2,237.14,12.84323244]
[1731959001057,23.776884,237.2,237.16,12.84323244]
[1731959001272,158.4,237.22,237.16,12.84323244]
[1731959001933,171.24323244,237.22,237.15,12.84323244]
[1731959002350,158.4,237.22,237.16,17.05973244]
[1731959002653,12.84323244,237.27,237.17,12.84323244]
[1731959003155,12.84323244,237.3,237.17,12.84323244]
[1731959003379,4.2139,237.31,237.17,12.84323244]
[1731959003558,12.84323244,237.29,237.17,12.84323244]
[1731959003945,5.72026335,237.49,237.28,12.84323244]
[1731959003946,184.60553244,237.4,237.28,12.84323244]
[1731959004133,158.4,237.39,237.32,12.84323244]
[1731959004445,12.84323244,237.38,237.31,12.84323244]
[1731959005265,158.4,237.39,237.31,12.84323244]
[1731959005654,158.4,237.39,237.33,12.84323244]
[1731959005913,9.1499,237.4,237.33,12.84323244]
[1731959006359,171.93618322,237.41,237.38,4.2126]
[1731959006360,0.69295078,237.41,237.38,4.2126]
[1731959007041,0.69295078,237.41,237.4,12.84323244]
[1731959007240,0.69295078,237.41,237.38,27.58743244]
[1731959007845,0.69295078,237.41,237.38,14.7442]
[1731959008553,44.22169464,237.4,237.31,35.19331064]
[1731959008751,20.44481064,237.37,237.31,14.7485]
[1731959009982,20.44481064,237.39,237.31,35.19331064]
[1731959011487,0.69295078,237.41,237.35,20.44481064]
[1731959011660,0.69295078,237.41,237.38,20.44481064]
[1731959013874,0.69295078,237.41,237.39,14.7435]
[1731959014478,158.4,237.62,237.41,20.75098]
[1731959014683,158.4,237.62,237.5,20.44481064]
[1731959014684,162.6084,237.62,237.5,20.44481064]
[1731959014890,20.44481064,237.56,237.48,20.44481064]
[1731959015182,74.2084,237.62,237.41,20.0]
[1731959015183,20.44481064,237.54,237.44,20.44481064]
[1731959015382,20.44481064,237.54,237.46,20.44481064]
[1731959015583,20.44481064,237.54,237.47,14.7386]
[1731959017572,20.44481064,237.52,237.47,10.5276]
[1731959018484,20.44481064,237.54,237.47,10.5276]
[1731959018795,20.44481064,237.49,237.43,4.2116]
[1731959020293,23.776884,237.53,237.42,10.5297]
[1731959020294,20.44481064,237.44,237.42,10.5297]
[1731959020591,182.176884,237.53,237.4,4.2121]
[1731959020592,20.44481064,237.47,237.4,24.65691064]
[1731959020911,20.44481064,237.49,237.42,20.44481064]
[1731959021086,20.44481064,237.52,237.44,20.44481064]
[1731959021665,23.776884,237.53,237.44,20.44481064]
[1731959021861,20.44481064,237.52,237.44,20.44481064]
[1731959022466,20.44481064,237.52,237.45,14.7399]
[1731959022674,20.44481064,237.5,237.45,14.7399]
[1731959023768,28.237464,237.55,237.45,14.7399]
[1731959023769,20.44481064,237.52,237.45,14.7399]
[1731959024693,4.30347462,237.54,237.45,14.7399]
[1731959024694,20.44481064,237.5,237.45,14.7399]
[1731959024895,20.44481064,237.52,237.45,14.7399]
[1731959025071,20.44481064,237.54,237.45,35.18471064]
[1731959025374,4.2093,237.57,237.45,14.7399]
[1731959025578,24.65411064,237.57,237.47,20.44481064]
[1731959025981,24.65411064,237.57,237.48,14.738]
[1731959026368,20.44481064,237.55,237.48,14.738]
[1731959027068,0.09367462,237.54,237.44,20.44481064]
[1731959027265,20.44481064,237.48,237.4,20.44481064]
[1731959027464,20.44481064,237.52,237.44,20.44481064]
[1731959027696,20.44481064,237.54,237.46,20.44481064]
[1731959028198,4.2082,237.63,237.53,20.44481064]
[1731959028386,12.75822097,237.63,237.55,12.75822097]
[1731959028792,12.75822097,237.63,237.53,12.75822097]
[1731959029095,12.75822097,237.61,237.51,12.75822097]
[1731959029300,12.75822097,237.61,237.53,12.75822097]
[1731959030095,12.75822097,237.59,237.52,14.7355]
[1731959030270,12.75822097,237.57,237.52,10.5254]
[1731959030799,12.75822097,237.57,237.52,14.7355]
[1731959030997,12.75822097,237.57,237.52,10.5254]
[1731959031677,12.75822097,237.57,237.46,30.8266]
[1731959031678,12.75822097,237.55,237.47,23.28552097]
[1731959032687,12.75822097,237.53,237.45,12.75822097]
[1731959032993,194.93510497,237.56,237.47,12.75822097]
[1731959033209,36.53510497,237.56,237.47,12.75822097]
[1731959033503,12.75822097,237.54,237.45,12.75822097]
[1731959033906,12.75822097,237.54,237.46,4.2112]
[1731959034102,4.2097,237.55,237.46,4.2112]
[1731959034280,12.75822097,237.51,237.46,4.2112]
[1731959034804,12.75822097,237.51,237.44,4.2114]
[1731959034986,12.75822097,237.51,237.44,14.7403]
[1731959035188,12.75822097,237.53,237.44,14.7403]
[1731959035388,12.75822097,237.56,237.47,12.75822097]
[1731959035801,12.75822097,237.54,237.47,16.96912097]
[1731959037911,16.96812097,237.54,237.47,23.28582097]
[1731959038096,16.96812097,237.54,237.47,10.5276]
[1731959038585,12.75822097,237.5,237.42,10.5295]
[1731959038899,12.75822097,237.48,237.42,10.5295]
[1731959039303,12.75822097,237.48,237.42,14.7414]
[1731959039686,12.75822097,237.5,237.43,12.75822097]
[1731959039887,12.75822097,237.5,237.43,16.96982097]
[1731959040313,9.6875,237.61,237.47,12.75822097]
[1731959040492,12.75822097,237.55,237.47,12.75822097]
[1731959040811,12.75822097,237.55,237.45,12.75822097]
[1731959041015,12.75822097,237.53,237.45,12.75822097]
[1731959041322,17.46692097,237.6,237.45,12.75822097]
[1731959041323,12.75822097,237.55,237.45,12.75822097]
[1731959041609,12.75822097,237.55,237.46,14.7392]
[1731959042609,12.75822097,237.51,237.43,12.75822097]
[1731959042786,12.75822097,237.49,237.42,10.5298]
[1731959042988,23.776884,237.54,237.42,14.7417]
[1731959043187,12.75822097,237.52,237.43,12.75822097]
[1731959043393,158.4,237.58,237.49,12.75822097]
[1731959043589,11.28324285,237.72,237.47,12.75822097]
[1731959043590,12.75822097,237.56,237.47,12.75822097]
[1731959043813,12.75822097,237.54,237.45,12.75822097]
[1731959044812,12.75822097,237.54,237.46,4.2112]
[1731959045212,16.96802097,237.54,237.46,14.7392]
[1731959046909,16.96802097,237.54,237.47,12.75822097]
[1731959047794,12.75822097,237.56,237.49,12.75822097]
[1731959048115,12.75822097,237.58,237.49,12.75822097]
[1731959048994,12.75822097,237.58,237.5,4.2105]
[1731959050321,16.96732097,237.58,237.5,14.7368]
[1731959053123,12.75822097,237.58,237.5,14.7368]
[1731959054303,12.75822097,237.58,237.44,21.0579]
[1731959054304,12.75822097,237.54,237.44,21.0579]
[1731959054509,12.75822097,237.54,237.45,27.49802097]
[1731959054907,12.75822097,237.52,237.45,10.5284]
[1731959055119,12.75822097,237.5,237.45,14.7398]
[1731959055713,12.75822097,237.52,237.45,14.7398]
[1731959056017,12.75822097,237.52,237.45,27.49802097]
[1731959057019,23.776884,237.57,237.47,12.75822097]
[1731959057204,12.75822097,237.57,237.49,12.75822097]
[1731959057413,12.75822097,237.55,237.45,27.49802097]
[1731959057706,12.75822097,237.53,237.45,27.49802097]
[1731959057915,12.75822097,237.56,237.47,12.75822097]
[1731959058221,12.75822097,237.56,237.48,4.2108]
[1731959058523,23.776884,237.55,237.48,4.2108]
[1731959058719,12.75822097,237.56,237.48,14.738]
[1731959059096,12.75822097,237.58,237.49,12.75822097]
[1731959060221,12.75822097,237.6,237.53,12.75822097]
[1731959061031,12.75822097,237.6,237.5,14.7368]
[1731959061032,12.75822097,237.64,237.55,12.75822097]
[1731959062020,12.75822097,237.64,237.5,14.7368]
[1731959062021,12.75822097,237.6,237.53,12.75822097]
[1731959062324,12.75822097,237.6,237.51,12.75822097]
[1731959062497,12.75822097,237.58,237.51,12.75822097]
[1731959062707,12.75822097,237.58,237.5,10.5263]
[1731959063015,12.75822097,237.54,237.46,4.2111]
[1731959063207,12.75822097,237.54,237.47,12.75822097]
[1731959063520,12.75822097,237.56,237.47,12.75822097]
[1731959063901,12.75822097,237.56,237.5,4.2105]
[1731959064311,12.75822097,237.58,237.5,4.2105]
[1731959064617,12.75822097,237.58,237.51,12.75822097]
[1731959064819,12.75822097,237.62,237.53,12.75822097]
[1731959065009,23.776884,237.61,237.53,12.75822097]
[1731959065222,12.75822097,237.64,237.55,12.75822097]
[1731959065906,12.75822097,237.64,237.56,4.2094]
[1731959066450,23.776884,237.63,237.56,4.2094]
[1731959067527,23.776884,237.63,237.55,12.75822097]
[1731959067528,12.75822097,237.62,237.54,10.5242]
[1731959067715,12.75822097,237.62,237.54,14.7339]
[1731959073012,12.75822097,237.6,237.54,14.7339]
[1731959073212,12.75822097,237.58,237.51,4.2102]
[1731959073413,12.75822097,237.56,237.51,4.2102]
[1731959073727,12.75822097,237.52,237.43,9.2855]
[1731959073909,12.75822097,237.52,237.44,14.7401]
[1731959074316,12.75822097,237.54,237.44,14.7401]
[1731959074523,12.75822097,237.58,237.5,12.75822097]
[1731959075020,12.75822097,237.58,237.51,4.2103]
[1731959075842,12.75822097,237.58,237.51,14.7361]
[1731959076940,12.75822097,237.62,237.54,12.75822097]
[1731959077232,16.96632097,237.64,237.56,12.75822097]
[1731959077742,12.75822097,237.62,237.54,12.75822097]
[1731959078131,12.75822097,237.6,237.55,4.2096]
[1731959078448,12.75822097,237.6,237.52,35.62522097]
[1731959078449,12.75822097,237.6,237.53,14.7347]
[1731959079825,4.2087,237.61,237.44,21.0579]
[1731959079826,12.75822097,237.56,237.48,12.75822097]
[1731959080225,12.75822097,237.58,237.48,12.75822097]
[1731959080838,23.776884,237.55,237.46,35.62522097]
[1731959081145,12.75822097,237.54,237.46,35.62522097]
[1731959081722,12.75822097,237.54,237.47,14.7386]
[1731959081924,12.75822097,237.5,237.43,9.2855]
[1731959082938,12.75822097,237.5,237.43,24.0264]
[1731959083247,12.75822097,237.5,237.43,14.7409]
[1731959084045,12.75822097,237.48,237.43,14.741]
[1731959084223,23.776884,237.47,237.4,16.97032097]
[1731959084419,23.776884,237.45,237.39,2.04769215]
[1731959084648,12.75822097,237.44,237.38,4.2125]
[1731959084831,12.75822097,237.44,237.36,23.29072097]
[1731959085037,12.75822097,237.42,237.36,10.5325]
[1731959085241,12.75822097,237.42,237.36,14.7455]
[1731959085531,12.75822097,237.44,237.36,27.50372097]
[1731959085733,23.776884,237.45,237.38,12.75822097]
[1731959085953,12.75822097,237.45,237.37,12.75822097]
[1731959086944,12.75822097,237.45,237.38,14.7442]
[1731959087146,12.75822097,237.47,237.39,12.75822097]
[1731959087327,12.75822097,237.49,237.41,12.75822097]
[1731959087746,12.64717264,237.49,237.41,12.75822097]
[1731959088044,12.75822097,237.47,237.39,12.75822097]
[1731959088943,23.776884,237.46,237.39,12.75822097]
[1731959089144,23.776884,237.46,237.4,14.7429]
[1731959089446,23.776884,237.44,237.35,21.0659]
[1731959089637,23.776884,237.44,237.37,4.2127]
[1731959090130,23.776884,237.46,237.38,12.75822097]
[1731959090935,23.776884,237.48,237.42,12.75822097]
[1731959091130,12.75822097,237.51,237.43,14.7411]
[1731959092853,12.75822097,237.51,237.38,24.749]
[1731959092854,12.75822097,237.46,237.38,24.749]
[1731959093026,16.96952097,237.46,237.39,4.2123]
[1731959093339,12.75822097,237.46,237.39,4.2123]
[1731959093542,23.776884,237.45,237.39,4.2123]
[1731959094431,12.75822097,237.44,237.39,4.2123]
[1731959094633,12.75822097,237.44,237.38,10.5312]
[1731959094634,23.776884,237.43,237.38,10.5312]
[1731959094853,23.776884,237.43,237.38,14.7438]
[1731959095035,12.75822097,237.44,237.38,10.5312]
[1731959095736,12.75822097,237.46,237.38,10.5312]
[1731959095952,23.776884,237.45,237.38,10.5312]
[1731959096134,12.75822097,237.44,237.38,10.5312]
[1731959096358,12.75822097,237.46,237.38,10.5312]
[1731959096559,23.776884,237.45,237.38,14.7438]
[1731959096727,12.75822097,237.44,237.38,14.7438]
[1731959097551,12.75822097,237.44,237.38,10.5312]
[1731959098343,12.75822097,237.44,237.36,4.213]
[1731959098344,27.988584,237.43,237.36,4.213]
[1731959098656,23.776884,237.39,237.34,10.5333]
[1731959099244,23.776884,237.39,237.23,11.16756695]
[1731959099245,12.75822097,237.36,237.25,14.7523]
[1731959099556,12.75822097,237.32,237.25,14.7523]
[1731959099756,23.776884,237.34,237.26,12.75822097]
[1731959099932,4.2133,237.35,237.25,14.7523]
[1731959099933,23.776884,237.37,237.3,12.75822097]
[1731959100955,24.12153862,237.24,237.07,24.5029]
[1731959101162,24.12153862,237.24,237.07,37.26112097]